bitfinex/quotes_BTCUSD_20251230
["timestamp","ask_amount","ask_price","bid_price","bid_amount"]
[1767088818970,0.000307,87969.0,87966.0,0.0001456]
[1767088819149,0.5121943,87990.0,87967.0,0.14865]
[1767088819150,0.01136518,87988.0,87967.0,0.14865]
[1767088819306,0.01136518,87988.0,87966.0,0.0001456]
[1767088819307,0.5121943,87977.0,87966.0,0.0001456]
[1767088819490,0.5121943,87977.0,87943.0,0.08151442]
[1767088819491,0.5121943,87977.0,87955.0,0.00994623]
[1767088819492,0.01136828,87964.0,87955.0,0.00994623]
[1767088819690,0.02500725,87963.0,87940.0,0.0116]
[1767088819898,0.0113688,87960.0,87941.0,0.14865]
[1767088820118,0.01136867,87961.0,87941.0,0.1487572]
[1767088820357,0.03640725,87963.0,87941.0,0.1487572]
[1767088820534,0.03640725,87963.0,87950.0,0.5121943]
[1767088821010,0.02500725,87963.0,87950.0,0.5121943]
[1767088821438,0.01136854,87962.0,87949.0,0.0114]
[1767088821620,0.02500725,87963.0,87949.0,0.0114]
[1767088821785,0.01363884,87963.0,87949.0,0.0114]
[1767088822197,0.01363884,87963.0,87950.0,0.5121943]
[1767088822694,0.01136893,87959.0,87949.0,0.0114]
[1767088822896,0.01136919,87957.0,87949.0,0.0114]
[1767088823107,0.01136932,87956.0,87949.0,0.0114]
[1767088823310,0.01136957,87954.0,87949.0,0.0114]
[1767088824171,0.01136932,87956.0,87949.0,0.0114]
[1767088824348,0.01136945,87955.0,87949.0,0.0114]
[1767088824523,0.01136919,87957.0,87949.0,0.0114]
[1767088824724,0.0113688,87960.0,87949.0,0.0114]
[1767088825026,0.01136906,87958.0,87949.0,0.0114]
[1767088825229,0.01136945,87955.0,87949.0,0.0114]
[1767088825424,0.06821931,87952.0,87941.0,0.0115072]
[1767088825611,0.01137061,87946.0,87941.0,0.0001072]
[1767088825818,0.01137087,87944.0,87941.0,0.0001072]
[1767088826440,0.06822461,87945.0,87941.0,0.0001072]
[1767088826441,0.01137074,87945.0,87941.0,0.0001072]
[1767088826680,0.02500932,87947.0,87941.0,0.0001072]
[1767088827196,0.0114,87946.0,87941.0,0.0001072]
[1767088827414,0.01136957,87954.0,87941.0,0.0001072]
[1767088827622,0.01363884,87958.0,87941.0,0.0001072]
[1767088827623,0.01363884,87958.0,87946.0,0.001099]
[1767088828108,0.01363884,87958.0,87941.0,0.0001072]
[1767088829148,0.01363884,87958.0,87941.0,0.01147846]
[1767088829522,0.0682084,87966.0,87958.0,0.000549]
[1767088829523,0.02500699,87965.0,87958.0,0.000549]
[1767088829729,0.01363884,87965.0,87958.0,0.000549]
[1767088829936,0.01136828,87964.0,87958.0,0.000549]
[1767088830148,0.02500699,87965.0,87951.0,0.0114]
[1767088831333,0.01363884,87965.0,87951.0,0.0114]
[1767088834026,0.0114,87970.0,87965.0,0.000549]
[1767088834230,0.0114,87970.0,87951.0,0.17141996]
[1767088834973,0.0114,87970.0,87951.0,0.16005]
[1767088835179,0.0114,87970.0,87952.0,0.01136983]
[1767088835397,0.01136647,87978.0,87970.0,0.000549]
[1767088835597,0.01382524,87976.0,87970.0,0.000549]
[1767088835797,0.01382524,87976.0,87964.0,0.0114]
[1767088836254,0.0001864,87976.0,87964.0,0.0114]
[1767088836676,0.00026757,87976.0,87964.0,0.0114]
[1767088840274,5.7e-07,87976.0,87967.0,0.01136789]
[1767088840476,5.7e-07,87976.0,87966.0,0.5121943]
[1767088840477,0.0001758,87986.0,87974.0,0.01136699]
[1767088840671,0.01363884,88010.0,87974.0,0.01136699]
[1767088840672,0.0114,88001.0,87977.0,0.0113666]
[1767088840980,6.88e-05,87997.0,87987.0,0.51214819]
[1767088841175,6.88e-05,87997.0,87988.0,0.0114]
[1767088842409,6.88e-05,87997.0,87988.0,0.16005]
[1767088842599,0.01136247,88009.0,87988.0,0.16005]
[1767088842859,0.0001132,88005.0,87990.0,0.51214819]
[1767088845797,0.0001132,88005.0,87988.0,0.17141518]
[1767088845986,0.0001132,88005.0,87990.0,0.51214819]
[1767088846258,0.0001132,88005.0,87990.0,0.52351311]
[1767088846466,0.01136221,88011.0,87990.0,0.52351311]
[1767088846467,0.0002,88014.0,88005.0,0.0001098]
[1767088846672,0.0002,88014.0,88005.0,0.0114]
[1767088846968,0.01136208,88012.0,88005.0,0.0114]
[1767088847176,0.0002,88014.0,88005.0,0.01129]
[1767088847589,0.01136208,88012.0,88005.0,0.01129]
[1767088847804,0.0002,88014.0,88005.0,0.01129]
[1767088848015,0.01156182,88014.0,88005.0,0.01129]
[1767088848187,0.0002,88014.0,88005.0,0.01129]
[1767088849945,0.01136079,88022.0,88005.0,0.01129]
[1767088849946,0.01136027,88026.0,88014.0,0.0002]
[1767088850150,0.00010723,88026.0,88016.0,0.51214819]
[1767088850288,0.00010723,88026.0,88013.0,0.0114]
[1767088850491,0.01363884,88024.0,88013.0,0.0114]
[1767088850885,0.00010723,88026.0,88013.0,0.0114]
[1767088851503,0.0114675,88026.0,88013.0,0.0114]
[1767088851884,0.00010723,88026.0,88013.0,0.0114]
[1767088852069,0.00010723,88026.0,88016.0,0.51214819]
[1767088853749,0.00010723,88026.0,88014.0,0.14553]
[1767088853995,0.00010723,88026.0,88016.0,0.51214819]
[1767088856639,0.00010723,88026.0,88014.0,0.14553]
[1767088856973,0.0114675,88026.0,88014.0,0.14553]
[1767088857173,0.0113604,88025.0,88014.0,0.14553]
[1767088857375,0.00010723,88026.0,88014.0,0.14553]
[1767088858196,0.00010723,88026.0,88017.0,0.14666]
[1767088858531,0.00010723,88026.0,88010.0,0.51214819]
[1767088858730,0.00010723,88026.0,88011.0,0.0114]
[1767088858944,0.00010723,88026.0,88016.0,0.51214819]
[1767088861374,0.0114675,88026.0,88016.0,0.51214819]
[1767088861548,0.00010723,88026.0,88016.0,0.51214819]
[1767088861753,0.0114675,88026.0,88016.0,0.51214819]
[1767088861973,0.00010723,88026.0,88016.0,0.51214819]
[1767088864358,0.00010723,88026.0,88017.0,0.0114]
[1767088864756,0.0114675,88026.0,88017.0,0.010848]
[1767088865004,0.01136053,88024.0,88017.0,0.010848]
[1767088865230,0.01136066,88023.0,88017.0,0.010848]
[1767088865421,0.0114675,88026.0,88017.0,0.010848]
[1767088866001,0.0113604,88025.0,88017.0,0.010848]
[1767088867549,0.0114675,88026.0,88017.0,0.010848]
[1767088867752,0.01136157,88016.0,87994.0,0.01136441]
[1767088868089,0.01136182,88014.0,88001.0,0.04544]
[1767088868233,0.01136195,88013.0,88002.0,0.0114]
[1767088868837,0.01136169,88015.0,88002.0,0.0114]
[1767088869033,0.01136131,88018.0,88002.0,0.0114]
[1767088869034,0.01136131,88018.0,88013.0,0.001099]
[1767088869248,0.01136131,88018.0,88009.0,0.0114]
[1767088870348,0.01136144,88017.0,88009.0,0.0114]
[1767088870778,0.01136169,88015.0,88009.0,0.0114]
[1767088870932,0.01136195,88013.0,88009.0,0.0114]
[1767088871136,0.01136169,88015.0,88009.0,0.0114]
[1767088871337,0.01136182,88014.0,88009.0,0.0114]
[1767088871959,0.01136169,88015.0,88009.0,0.0114]
[1767088871960,0.01136131,88018.0,88009.0,0.0114]
[1767088872180,0.01136157,88016.0,88009.0,0.0114]
[1767088872387,0.01136131,88018.0,88009.0,0.0114]
[1767088872587,0.01136144,88017.0,88009.0,0.0114]
[1767088872990,0.01136131,88018.0,88009.0,0.0114]
[1767088873439,0.01136118,88019.0,88009.0,0.0114]
[1767088873991,0.01119077,88019.0,88009.0,0.0114]
[1767088874191,0.01136131,88018.0,88009.0,0.0114]
[1767088874595,0.01136079,88022.0,88009.0,0.0114]
[1767088875048,0.01136105,88020.0,88009.0,0.0114]
[1767088875223,0.01136079,88022.0,88009.0,0.0114]
[1767088875409,0.02200116,88021.0,88009.0,0.0114]
[1767088875608,0.01064026,88020.0,88009.0,0.0114]
[1767088875837,0.01136053,88024.0,88010.0,0.51214819]
[1767088876152,0.01064015,88023.0,88010.0,0.51214819]
[1767088876452,0.00010723,88026.0,88013.0,0.51214819]
[1767088876653,0.00010723,88026.0,88016.0,0.51214819]
[1767088876801,0.00010723,88026.0,88017.0,0.0114]
[1767088877398,0.01136053,88024.0,88017.0,0.010851]
[1767088878671,0.0113604,88025.0,88017.0,0.010851]
[1767088878883,0.00010723,88026.0,88017.0,0.010851]
[1767088879283,0.01374607,88026.0,88017.0,0.010851]
[1767088879885,0.00010723,88026.0,88017.0,0.010851]
[1767088881463,0.0114675,88026.0,88017.0,0.010851]
[1767088882064,0.02510634,88026.0,88017.0,0.010851]
[1767088882381,0.0113604,88025.0,88017.0,0.010851]
[1767088882790,0.02510634,88026.0,88017.0,0.010851]
[1767088882974,0.0113604,88025.0,88017.0,0.010851]
[1767088883172,0.02510634,88026.0,87997.0,0.14531]
[1767088883173,0.01136105,88020.0,87997.0,0.14531]
[1767088883380,0.01136144,88017.0,87998.0,0.0114]
[1767088883577,0.01136273,88007.0,87998.0,0.0114]
[1767088883790,0.01136299,88005.0,87999.0,0.0114]
[1767088884005,0.01136273,88007.0,87999.0,0.0114]
[1767088884275,0.01136286,88006.0,87999.0,0.0114]
[1767088884498,0.01136273,88007.0,87999.0,0.0114]
[1767088884696,0.01136234,88010.0,87999.0,0.0114]
[1767088884897,0.01136247,88009.0,87999.0,0.0114]
[1767088885169,0.01136144,88017.0,87999.0,0.0114]
[1767088885359,0.01136169,88015.0,88009.0,0.000549]
[1767088885762,0.01136169,88015.0,88000.0,0.51214819]
[1767088886361,0.01136182,88014.0,88000.0,0.51214819]
[1767088886568,0.01136182,88014.0,87999.0,0.0114]
[1767088886788,0.06816642,88020.0,88000.0,0.51188584]
[1767088886991,0.01136118,88019.0,88000.0,0.51188584]
[1767088887415,0.05680443,88022.0,88000.0,0.65719584]
[1767088887621,0.0114675,88026.0,88000.0,0.14531]
[1767088887622,0.01363884,88015.0,88000.0,0.14531]
[1767088887824,0.01136182,88014.0,88001.0,0.0114]
[1767088888038,0.01136208,88012.0,88002.0,0.0114]
[1767088888444,0.01136195,88013.0,88002.0,0.0114]
[1767088888647,0.01136182,88014.0,88002.0,0.0114]
[1767088888798,0.01136195,88013.0,88002.0,0.0114]
[1767088889536,0.01136182,88014.0,88002.0,0.0114]
[1767088890157,0.01136195,88013.0,88002.0,0.0114]
[1767088890369,0.01136182,88014.0,88002.0,0.0114]
[1767088890538,0.01136195,88013.0,88002.0,0.0114]
[1767088890762,0.05680785,88016.0,88002.0,0.0114]
[1767088890981,0.01136182,88014.0,88002.0,0.0114]
[1767088891322,0.01136169,88015.0,88002.0,0.0114]
[1767088891526,0.06817148,88014.0,88003.0,0.0114]
[1767088891747,0.01136221,88011.0,88003.0,0.0114]
[1767088891957,0.01136208,88012.0,88003.0,0.0114]
[1767088893324,0.01136195,88013.0,88003.0,0.0114]
[1767088894491,0.01136182,88014.0,88003.0,0.0114]
[1767088894891,0.01136208,88012.0,88003.0,0.0114]
[1767088895338,0.01136221,88011.0,88003.0,0.0114]
[1767088895565,0.01136234,88010.0,88003.0,0.0114]
[1767088895781,0.01136234,88010.0,87988.0,0.01136518]
[1767088895782,0.51353584,88020.0,87987.0,0.14531]
[1767088895983,0.01136299,88005.0,87988.0,0.05684]
[1767088896369,0.01136311,88004.0,87988.0,0.05684]
[1767088896587,0.01136286,88006.0,87988.0,0.05684]
[1767088896800,0.01136273,88007.0,87988.0,0.05684]
[1767088897154,0.01136299,88005.0,87988.0,0.05684]
[1767088897277,0.01136273,88007.0,87989.0,0.05684]
[1767088897894,0.0113626,88008.0,87989.0,0.05684]
[1767088898989,0.01136247,88009.0,87989.0,0.05684]
[1767088899737,0.0113626,88008.0,87989.0,0.05684]
[1767088900535,0.01136118,88019.0,88008.0,0.000549]
[1767088900741,0.01136144,88017.0,88008.0,0.000549]
[1767088900957,0.01136131,88018.0,88003.0,0.0114]
[1767088901215,0.01136144,88017.0,88003.0,0.0114]
[1767088901388,0.01136131,88018.0,88003.0,0.0114]
[1767088903189,0.01136144,88017.0,88003.0,0.0114]
[1767088903414,0.01136144,88017.0,88003.0,0.0115014]
[1767088903640,0.04110624,88039.0,88003.0,0.0115014]
[1767088903852,0.01363884,88086.0,88003.0,0.0115014]
[1767088903853,0.06128985,88093.0,88077.0,0.00593012]
[1767088904057,0.06810223,88103.0,88097.0,0.01119987]
[1767088904293,0.06810223,88103.0,88077.0,0.00557291]
[1767088904294,0.01135035,88103.0,88077.0,0.00557291]
[1767088904487,0.01135009,88105.0,88080.0,0.01135331]
[1767088904689,0.15732983,88107.0,88091.0,0.03030323]
[1767088904690,0.14598,88107.0,88091.0,0.03030323]
[1767088904899,0.14598,88107.0,88096.0,0.03030323]
[1767088905100,0.0113506,88101.0,88097.0,0.02424258]
[1767088905244,0.01135022,88104.0,88098.0,0.02424258]
[1767088905448,0.01135022,88104.0,88099.0,0.02424258]
[1767088905655,0.01135022,88104.0,88088.0,0.04190323]
[1767088906017,0.01135073,88100.0,88089.0,0.02418991]
[1767088906138,0.01135035,88103.0,88090.0,0.02418991]
[1767088906139,0.0113506,88101.0,88090.0,0.02418991]
[1767088906336,0.0113506,88101.0,88091.0,0.02418991]
[1767088906560,0.01135086,88099.0,88092.0,0.02418991]
[1767088906763,0.01135086,88099.0,88093.0,0.02418991]
[1767088906998,0.01135099,88098.0,88094.0,0.02418991]
[1767088907303,0.01135099,88098.0,88088.0,0.0116]
[1767088907304,0.0113506,88101.0,88095.0,0.02418991]
[1767088907602,0.0113506,88101.0,88096.0,0.02418991]
[1767088907827,0.01135073,88100.0,88097.0,0.02418991]
[1767088907965,0.01135073,88100.0,88087.0,0.03030323]
[1767088907966,0.01135073,88100.0,88098.0,0.02418991]
[1767088908169,0.13632,88101.0,88087.0,0.03030323]
[1767088908532,0.1476706,88101.0,88088.0,0.02410046]
[1767088908808,0.1476706,88101.0,88086.0,0.04190323]
[1767088908809,0.1476706,88101.0,88089.0,0.02410046]
[1767088908959,0.01135073,88100.0,88090.0,0.02410046]
[1767088909158,0.01135073,88100.0,88091.0,0.02410046]
[1767088909398,0.13632,88101.0,88092.0,0.02410046]
[1767088909612,0.13632,88101.0,88093.0,0.02410046]
[1767088909851,0.13074709,88101.0,88094.0,0.02410046]
[1767088910161,0.13074709,88101.0,88095.0,0.02410046]
[1767088910368,0.13074709,88101.0,88096.0,0.02410046]
[1767088910565,0.13074709,88101.0,88086.0,0.04190323]
[1767088910769,0.13074709,88101.0,88087.0,0.02406506]
[1767088910929,0.13074709,88101.0,88086.0,0.0116]
[1767088910930,0.01135048,88102.0,88088.0,0.02406506]
[1767088911127,0.06810084,88105.0,88086.0,0.0116]
[1767088911128,0.01135022,88104.0,88089.0,0.02406506]
[1767088911333,0.01135022,88104.0,88090.0,0.02406506]
[1767088911550,0.01135035,88103.0,88091.0,0.02406506]
[1767088911753,0.01135022,88104.0,88092.0,0.02406506]
[1767088911956,0.01135009,88105.0,88093.0,0.02406506]
[1767088912154,0.01135009,88105.0,88094.0,0.02406506]
[1767088912356,0.01134983,88107.0,88095.0,0.02406506]
[1767088912560,0.0113497,88108.0,88096.0,0.02406506]
[1767088912759,0.0116,88112.0,88097.0,0.02406506]
[1767088912939,0.02294919,88112.0,88098.0,0.02406506]
[1767088913136,0.02294919,88112.0,88099.0,0.02406506]
[1767088913137,0.01134996,88106.0,88099.0,0.02406506]
[1767088913343,0.01134996,88106.0,88100.0,0.02406506]
[1767088913538,0.01135048,88102.0,88089.0,0.03030323]
[1767088913760,0.01134996,88106.0,88090.0,0.02401864]
[1767088913960,0.01135022,88104.0,88102.0,0.001099]
[1767088914290,0.0116,88104.0,88089.0,0.03030323]
[1767088914494,0.0116,88104.0,88090.0,0.02401015]
[1767088914645,0.0116,88104.0,88091.0,0.02401015]
[1767088914840,0.0116,88104.0,88092.0,0.02401015]
[1767088915048,0.0116,88104.0,88093.0,0.02401015]
[1767088915251,0.0116,88104.0,88094.0,0.02401015]
[1767088915450,0.0116,88104.0,88095.0,0.02401015]
[1767088915655,0.0116,88104.0,88096.0,0.02401015]
[1767088915861,0.0116,88104.0,88097.0,0.02401015]
[1767088916062,0.0116,88104.0,88090.0,0.75089755]
[1767088916264,0.0116,88104.0,88091.0,0.02399618]
[1767088916472,0.0116,88104.0,88092.0,0.02399618]
[1767088916647,0.0116,88104.0,88093.0,0.02399618]
[1767088916844,0.0116,88104.0,88094.0,0.02399618]
[1767088917064,0.0116,88104.0,88095.0,0.02399618]
[1767088917276,0.0116,88104.0,88096.0,0.02399618]
[1767088917522,0.0116,88104.0,88097.0,0.02399618]
[1767088917712,0.0116,88104.0,88098.0,0.02399618]
[1767088917888,0.0116,88104.0,88090.0,0.78120078]
[1767088918099,0.0116,88104.0,88091.0,0.02398747]
[1767088918292,0.0116,88104.0,88092.0,0.02398747]
[1767088918489,0.0116,88104.0,88093.0,0.02398747]
[1767088918653,0.0116,88104.0,88094.0,0.02398747]
[1767088918860,0.02295022,88104.0,88095.0,0.02398747]
[1767088919241,0.0116,88104.0,88096.0,0.02398747]
[1767088919447,0.0116,88104.0,88097.0,0.02398747]
[1767088919653,0.0116,88104.0,88098.0,0.02398747]
[1767088919790,0.0116,88104.0,88090.0,0.75089755]
[1767088919974,0.0116,88104.0,88091.0,0.02398391]
[1767088920174,0.02295022,88104.0,88092.0,0.02398391]
[1767088920400,0.02295022,88104.0,88093.0,0.02398391]
[1767088920599,0.0116,88104.0,88094.0,0.02398391]
[1767088920879,0.01135035,88103.0,88095.0,0.02398391]
[1767088921113,0.01135048,88102.0,88096.0,0.02398391]
[1767088921322,0.01135035,88103.0,88097.0,0.02398391]
[1767088921495,0.01135035,88103.0,88090.0,0.75089755]
[1767088921496,0.0116,88104.0,88098.0,0.02398391]
[1767088921699,0.0116,88104.0,88088.0,0.04190323]
[1767088921938,0.0116,88104.0,88089.0,0.02398598]
[1767088922140,0.01135035,88103.0,88090.0,0.02398598]
[1767088922325,0.01135035,88103.0,88091.0,0.02398598]
[1767088922668,0.01135048,88102.0,88092.0,0.02398598]
[1767088922863,0.01135048,88102.0,88093.0,0.02398598]
[1767088923110,0.02295022,88104.0,88094.0,0.02398598]
[1767088923261,0.02295022,88104.0,88095.0,0.02398598]
[1767088923457,0.02295022,88104.0,88090.0,0.75089755]
[1767088923458,0.0116,88104.0,88096.0,0.02398598]
[1767088923660,0.02295022,88104.0,88090.0,0.75089755]
[1767088923863,0.0116,88104.0,88091.0,0.02399903]
[1767088924060,0.0116,88104.0,88092.0,0.02399903]
[1767088924333,0.01134983,88107.0,88093.0,0.02399903]
[1767088924504,0.01134996,88106.0,88104.0,0.000549]
[1767088924679,0.01134983,88107.0,88104.0,0.000549]
[1767088924865,0.01134983,88107.0,88090.0,0.75089755]
[1767088925069,0.01134983,88107.0,88091.0,0.02398916]
[1767088925406,0.0113497,88108.0,88092.0,0.02398916]
[1767088925611,0.01134944,88110.0,88088.0,0.04190323]
[1767088925612,0.01134957,88109.0,88093.0,0.02398916]
[1767088925837,0.01134957,88109.0,88094.0,0.02398916]
[1767088925838,0.0113497,88108.0,88094.0,0.02398916]
[1767088925991,0.0113497,88108.0,88095.0,0.02398916]
[1767088926325,0.06830709,88111.0,88098.0,0.75089755]
[1767088926326,0.01156,88111.0,88098.0,0.75089755]
[1767088926472,0.02290932,88111.0,88108.0,0.000549]
[1767088926843,0.07965613,88111.0,88108.0,0.000549]
[1767088927116,0.01135022,88104.0,88093.0,0.03030323]
[1767088927317,0.0113506,88101.0,88094.0,0.02402303]
[1767088927519,0.0113506,88101.0,88095.0,0.02402303]
[1767088927733,0.01135035,88103.0,88096.0,0.02402303]
[1767088927872,0.01135035,88103.0,88097.0,0.02402303]
[1767088928075,0.01135022,88104.0,88098.0,0.02402055]
[1767088928283,0.0113497,88108.0,88102.0,0.06061782]
[1767088928485,0.01135009,88105.0,88104.0,0.04006309]
[1767088928813,0.01156,88107.0,88104.0,0.02403534]
[1767088929011,0.02290983,88107.0,88105.0,0.02403534]
[1767088929223,0.02290983,88107.0,88106.0,0.02403534]
[1767088931239,0.02290983,88107.0,88106.0,0.05408257]
[1767088931400,0.079659,88107.0,88106.0,0.02403534]
[1767088931876,0.079659,88107.0,88106.0,0.05419638]
[1767088932150,0.01134996,88106.0,88105.0,0.04029534]
[1767088932555,0.01135022,88104.0,88099.0,0.06061782]
[1767088932733,0.01135022,88104.0,88102.0,0.04029908]
[1767088932934,0.06810055,88105.0,88104.0,0.000549]
[1767088933103,0.02290983,88107.0,88094.0,0.08081382]
[1767088933298,0.05675059,88105.0,88093.0,0.08081382]
[1767088933543,0.01063689,88104.0,88093.0,0.08081382]
[1767088933739,0.01063689,88103.0,88102.0,0.06069293]
[1767088934080,0.01063689,88103.0,88085.0,0.01729449]
[1767088934081,0.0113506,88101.0,88085.0,0.01729449]
[1767088934298,0.0002,88095.0,88086.0,0.01156]
[1767088934454,0.05675173,88104.0,88096.0,0.0002]
[1767088934622,0.13712,88099.0,88090.0,0.01156]
[1767088934824,0.13712,88099.0,88086.0,0.01816139]
[1767088934825,0.13712,88099.0,88089.0,0.01156]
[1767088935440,0.11282938,88099.0,88089.0,0.01156]
[1767088935643,0.01135073,88100.0,88089.0,0.01156]
[1767088935846,0.0113506,88101.0,88089.0,0.01156]
[1767088936086,0.04466,88100.0,88099.0,0.00048101]
[1767088936250,0.043761,88100.0,88099.0,1.01e-06]
[1767088938473,0.01135048,88102.0,88099.0,1.01e-06]
[1767088938674,0.01135048,88102.0,88101.0,0.03037279]
[1767088938918,0.001099,88101.0,88099.0,1.01e-06]
[1767088939098,0.01135048,88102.0,88099.0,1.01e-06]
[1767088940033,0.01135035,88103.0,88099.0,1.01e-06]
[1767088940433,0.01135048,88102.0,88099.0,1.01e-06]
[1767088940638,0.01135035,88103.0,88099.0,1.01e-06]
[1767088940881,0.01135048,88102.0,88099.0,1.01e-06]
[1767088942447,0.02290983,88107.0,88075.0,0.0002]
[1767088942448,0.01135189,88091.0,88075.0,0.0002]
[1767088942655,0.00024043,88137.0,88075.0,0.00030718]
[1767088942656,0.01135318,88081.0,88075.0,0.00030718]
[1767088942822,0.01135267,88085.0,88075.0,0.00030718]
[1767088942823,0.01135331,88080.0,88075.0,0.00030718]
[1767088943042,0.01135305,88082.0,88075.0,0.00030718]
[1767088943453,0.01135292,88083.0,88075.0,0.00030718]
[1767088943654,0.02291241,88087.0,88075.0,0.00030718]
[1767088943850,0.01156,88087.0,88077.0,0.75089755]
[1767088944194,0.02291241,88087.0,88075.0,0.00030718]
[1767088944762,0.06811814,88083.0,88075.0,0.00030718]
[1767088944963,0.06811814,88083.0,88052.0,0.01135692]
[1767088944964,0.01156,88087.0,88050.0,0.00053974]
[1767088945181,0.01156,88087.0,88035.0,0.000331]
[1767088945182,0.000331,88054.0,88035.0,0.000331]
[1767088945395,0.01135757,88047.0,88035.0,0.000331]
[1767088945622,0.01135873,88038.0,88035.0,0.000331]
[1767088945835,0.01156,88037.0,88035.0,0.000113]
[1767088946056,0.05679494,88036.0,88035.0,0.000113]
[1767088946277,0.05679494,88036.0,88035.0,1e-08]
[1767088946481,0.01136002,88028.0,88025.0,0.0002]
[1767088946688,0.02270202,88028.0,88025.0,0.0002]
[1767088947356,0.01136015,88027.0,88010.0,0.75089755]
[1767088947570,0.02270202,88028.0,88017.0,0.00025845]
[1767088947571,0.01156,88028.0,88017.0,0.00025845]
[1767088947780,0.01156,88028.0,88017.0,0.00041825]
[1767088948189,0.02272002,88028.0,88017.0,0.00041825]
[1767088949883,0.01120893,88027.0,88017.0,0.00026703]
[1767088950092,0.01136,88028.0,88017.0,0.00026703]
[1767088950511,0.01136,88028.0,88027.0,0.0004]
[1767088950709,0.01131745,88028.0,88027.0,0.0004]
[1767088951545,0.0112749,88028.0,88027.0,0.0004]
[1767088953658,0.22717738,88037.0,88027.0,0.0004]
[1767088953659,0.01156,88035.0,88027.0,0.0004]
[1767088959376,0.01140892,88035.0,88027.0,0.0004]
[1767088964070,0.01140892,88035.0,88025.0,0.50993055]
[1767088964649,0.06814472,88048.0,88025.0,0.50993055]
[1767088964650,0.01135666,88054.0,88029.0,0.13967]
[1767088964864,0.01152,88056.0,88033.0,0.52288992]
[1767088965177,0.01152,88056.0,88034.0,0.01135924]
[1767088965723,0.01135653,88055.0,88033.0,0.51153055]
[1767088965879,0.01135666,88054.0,88033.0,0.51153055]
[1767088966064,0.01135705,88051.0,88033.0,0.51153055]
[1767088966408,0.01135666,88054.0,88033.0,0.51153055]
[1767088967177,0.01135679,88053.0,88033.0,0.51153055]
[1767088967774,0.01135692,88052.0,88033.0,0.51153055]
[1767088968613,0.01135679,88053.0,88033.0,0.51153055]
[1767088969405,0.01135666,88054.0,88033.0,0.51153055]
[1767088970964,0.01135653,88055.0,88033.0,0.51153055]
[1767088971185,0.0228764,88056.0,88031.0,0.15102963]
[1767088971332,0.01135653,88055.0,88035.0,0.51153055]
[1767088972158,0.0228764,88056.0,88035.0,0.51153055]
[1767088973024,0.01152,88056.0,88035.0,0.52288966]
[1767088973336,0.01152,88056.0,88035.0,0.01135911]
[1767088973561,0.0228764,88056.0,88035.0,0.51153055]
[1767088973765,0.01152,88056.0,88036.0,0.01135898]
[1767088973923,0.01152,88056.0,88035.0,0.51153055]
[1767088974124,0.01152,88056.0,88035.0,0.52288966]
[1767088974825,0.01152,88056.0,88036.0,0.01135898]
[1767088976384,0.01152,88056.0,88035.0,0.52288966]
[1767088976810,0.0228764,88056.0,88035.0,0.51153055]
[1767088977527,0.0228764,88056.0,88035.0,0.52288966]
[1767088977528,0.01152,88056.0,88035.0,0.52288966]
[1767088978833,0.01152,88056.0,88036.0,0.01135898]
[1767088978994,0.01152,88056.0,88035.0,0.52288966]
[1767088979201,0.01152,88056.0,88036.0,0.01135898]
[1767088979582,0.01152,88056.0,88035.0,0.52288966]
[1767088979877,0.01152,88056.0,88036.0,0.01135898]
[1767088980452,0.01152,88056.0,88032.0,0.01152]
[1767088980453,0.000549,88036.0,88032.0,0.01152]
[1767088980604,0.000549,88036.0,88033.0,0.01135937]
[1767088980807,0.0228764,88056.0,88034.0,0.16884924]
[1767088981015,0.0228764,88056.0,88038.0,0.000549]
[1767088981214,0.01152,88056.0,88038.0,0.000549]
[1767088981473,0.22710892,88064.0,88038.0,0.000549]
[1767088981474,0.0244929,88058.0,88042.0,0.13796]
[1767088981678,0.0002,88055.0,88042.0,0.13796]
[1767088981831,0.0002,88055.0,88045.0,0.51145829]
[1767088982685,0.0002,88055.0,88043.0,0.01152]
[1767088983134,0.00055677,88055.0,88043.0,0.01152]
[1767088983426,0.00055677,88055.0,88038.0,0.000549]
[1767088983427,0.00055,88043.0,88038.0,0.000549]
[1767088983655,0.00055677,88055.0,88038.0,0.000549]
[1767088983656,0.01135757,88047.0,88038.0,0.000549]
[1767088983857,0.01135769,88046.0,88038.0,0.000549]
[1767088984005,0.01135782,88045.0,88038.0,0.000549]
[1767088984415,0.01135782,88045.0,88035.0,0.51165829]
[1767088984416,0.01135769,88046.0,88035.0,0.51165829]
[1767088984989,0.01135757,88047.0,88035.0,0.51165829]
[1767088985183,0.01135744,88048.0,88037.0,0.51145829]
[1767088985387,0.01135757,88047.0,88038.0,0.51145829]
[1767088985933,0.01135744,88048.0,88038.0,0.51145829]
[1767088986955,0.01135757,88047.0,88038.0,0.51145829]
[1767088987242,0.01135744,88048.0,88038.0,0.51145829]
[1767088987607,0.01135757,88047.0,88038.0,0.51145829]
[1767088988564,0.01135782,88045.0,88035.0,0.0002]
[1767088988761,0.07966599,88047.0,88035.0,0.0002]
[1767088988762,0.01152,88047.0,88035.0,0.0002]
[1767088988962,0.01135795,88044.0,88035.0,0.0002]
[1767088989386,0.01135782,88045.0,88035.0,0.0002]
[1767088991495,0.01135795,88044.0,88035.0,0.0002]
[1767088991656,0.01135782,88045.0,88035.0,0.0002]
[1767088992057,0.01135769,88046.0,88035.0,0.51165829]
[1767088993080,0.01152,88047.0,88035.0,0.51165829]
[1767088993262,0.01152,88047.0,88037.0,0.51145829]
[1767088993462,0.01135666,88054.0,88035.0,0.0002]
[1767088993659,0.01064606,88053.0,88040.0,0.51145829]
[1767088993868,0.05733999,88055.0,88040.0,0.51145829]
[1767088993869,0.06869652,88055.0,88040.0,0.51145829]
[1767088994068,0.02200278,88054.0,88040.0,0.51145829]
[1767088994291,0.01064612,88053.0,88040.0,0.51145829]
[1767088994653,0.01064612,88053.0,88035.0,0.0002]
[1767088994854,0.01064612,88053.0,88040.0,0.51145829]
[1767088995275,0.01135705,88051.0,88040.0,0.51145829]
[1767088995480,0.01135692,88052.0,88040.0,0.51145829]
[1767088995679,0.01135679,88053.0,88040.0,0.51145829]
[1767088996127,0.01135666,88054.0,88040.0,0.51145829]
[1767088996905,0.01135679,88053.0,88040.0,0.51145829]
[1767088997869,0.01135666,88054.0,88040.0,0.51145829]
[1767088998862,0.0119133,88055.0,88040.0,0.51145829]
[1767088999224,0.01135666,88054.0,88040.0,0.51145829]
[1767088999452,0.0119133,88055.0,88040.0,0.51145829]
[1767088999846,0.0119133,88055.0,88035.0,0.0002]
[1767089000081,0.0119133,88055.0,88040.0,0.51145829]
[1767089000432,0.01135666,88054.0,88040.0,0.51145829]
[1767089001274,0.0119133,88055.0,88040.0,0.51145829]
[1767089001686,0.00055677,88055.0,88040.0,0.51145829]